bitfinex-derivatives/quotes_SOLF0:USTF0_20240926
["timestamp","ask_amount","ask_price","bid_price","bid_amount"]
[1727311757269,1.299,147.19,147.11,97.87]
[1727311757478,1.299,147.19,147.11,81.58]
[1727311757677,16.29,147.18,147.11,81.58]
[1727311758268,3.43393498,147.18,147.02,81.58]
[1727311758474,1.299,147.19,147.05,1.4012]
[1727311758475,16.29,147.13,147.05,1.4012]
[1727311758673,3.4003,147.07,147.05,1.4012]
[1727311758870,16.29,147.11,147.02,81.58]
[1727311759079,16.29,147.09,147.02,81.58]
[1727311759775,16.29,147.09,146.94,2.6243]
[1727311759982,3.36529602,147.12,146.98,16.29]
[1727311759983,16.29,147.06,146.98,16.29]
[1727311760174,16.29,147.16,146.92,6.63958674]
[1727311760175,16.29,147.09,146.92,6.63958674]
[1727311760479,16.29,147.06,146.96,16.29]
[1727311760690,16.29,147.06,146.97,2.7054]
[1727311761175,36.59,147.16,146.98,16.29]
[1727311761176,16.29,147.08,146.98,16.29]
[1727311761780,16.29,147.06,146.97,2.7054]
[1727311762272,3.4013,147.03,146.97,2.7054]
[1727311762475,16.29,147.06,146.97,2.7054]
[1727311763079,16.29,147.04,146.97,2.7054]
[1727311763281,3.4019,147.0,146.94,84.9832]
[1727311763584,16.29,147.02,146.94,84.2824]
[1727311763976,3.402,147.0,146.94,84.2824]
[1727311764179,16.29,147.04,146.95,16.29]
[1727311764482,3.4018,147.01,146.95,16.29]
[1727311764875,40.59,147.19,146.92,7.84329552]
[1727311764876,40.59,147.12,146.92,4.50248674]
[1727311765080,16.29,146.96,146.92,4.50248674]
[1727311765476,16.29,146.94,146.92,4.50248674]
[1727311765882,3.4034,146.93,146.92,4.50248674]
[1727311767182,3.4034,146.93,146.92,3.60358674]
[1727311768976,16.29,146.95,146.92,3.60358674]
[1727311769176,0.4466,147.0,146.92,3.60358674]
[1727311769177,16.29,146.97,146.92,3.60358674]
[1727311769379,16.29,146.95,146.92,3.60358674]
[1727311769581,3.4034,146.93,146.92,3.60358674]
[1727311771582,19.6934,146.93,146.92,3.60358674]
[1727311773880,19.71207567,147.01,146.92,3.60358674]
[1727311773881,3.4032,146.94,146.92,3.60358674]
[1727311774085,16.29,146.95,146.92,3.60358674]
[1727311774693,3.4034,146.93,146.92,3.60358674]
[1727311774987,19.6934,146.93,146.92,3.60358674]
[1727311775286,16.29,146.93,146.84,1.2853]
[1727311775482,16.29,146.94,146.86,16.29]
[1727311775684,16.29,146.94,146.86,19.6949]
[1727311776182,16.29,146.94,146.84,1.2853]
[1727311776183,16.29,146.94,146.84,17.5753]
[1727311776393,16.29,146.94,146.85,3.4051]
[1727311776586,16.29,146.94,146.84,17.5753]
[1727311776891,16.29,146.94,146.86,16.29]
[1727311777790,3.404,146.91,146.86,16.29]
[1727311777991,16.29,146.94,146.86,19.6951]
[1727311778282,3.4035,146.93,146.86,16.29]
[1727311778590,3.4035,146.93,146.87,3.4046]
[1727311778789,16.29,146.94,146.87,3.4046]
[1727311779187,16.29,146.96,146.88,16.29]
[1727311779388,16.29,146.96,146.89,1.4247]
[1727311779587,16.29,146.96,146.89,6.19056581]
[1727311780392,16.29,146.98,146.89,6.19056581]
[1727311781293,16.29,146.96,146.89,2.8443]
[1727311781990,16.29,146.98,146.89,2.8443]
[1727311782293,16.29,146.98,146.9,3.34603543]
[1727311782489,16.29,146.98,146.9,6.75013543]
[1727311783492,16.29,146.98,146.89,2.8443]
[1727311783686,16.29,146.98,146.89,6.16990994]
[1727311784000,16.29,146.96,146.89,2.8443]
[1727311784592,3.4036,146.93,146.89,2.8443]
[1727311784791,16.29,146.96,146.89,2.8443]
[1727311785390,3.4037,146.93,146.89,2.8443]
[1727311785798,16.29,146.96,146.89,2.8443]
[1727311786700,16.29,146.95,146.89,2.8443]
[1727311787491,16.29,146.97,146.89,2.8443]
[1727311788593,88.65672048,147.02,146.89,6.21121935]
[1727311788594,16.29,146.99,146.89,6.21121935]
[1727311788792,88.65672048,147.02,146.89,2.8443]
[1727311788793,16.29,146.97,146.89,2.8443]
[1727311789301,3.4041,146.91,146.89,2.8443]
[1727311790388,16.29,146.97,146.89,2.8443]
[1727311790992,16.29,147.01,146.9,16.29]
[1727311791301,16.29,147.01,146.91,3.4039]
[1727311791501,16.29,147.01,146.91,8.22561871]
[1727311791502,3.403,146.96,146.91,8.22561871]
[1727311792002,16.29,147.01,146.91,1.4119]
[1727311792297,16.29,146.98,146.91,1.4119]
[1727311792799,3.4036,146.93,146.91,1.4119]
[1727311793192,16.29,146.96,146.91,1.4119]
[1727311793589,88.65672048,147.02,146.91,1.4119]
[1727311793788,16.29,146.97,146.91,1.4119]
[1727311794093,3.4035,146.93,146.91,1.4119]
[1727311796207,16.29,146.99,146.91,1.4119]
[1727311797100,16.29,146.99,146.89,2.8443]
[1727311797101,3.4035,146.93,146.89,9.61368788]
[1727311797295,3.4035,146.93,146.89,10.95478788]
[1727311797900,16.29,146.97,146.89,4.1854]
[1727311799409,3.4037,146.93,146.89,4.1854]
[1727311799802,3.4037,146.93,146.89,7.5897]
[1727311799999,3.4037,146.93,146.89,4.1854]
[1727311800198,16.29,146.97,146.89,23.89804918]
[1727311800399,95.45972048,147.02,146.89,23.89804918]
[1727311800400,16.29,146.99,146.89,23.89804918]
[1727311800711,16.29,146.97,146.89,4.1854]
[1727311800904,3.4036,146.93,146.89,4.1854]
[1727311801301,3.4039,146.91,146.89,4.1854]
[1727311801508,16.29,146.97,146.89,4.1854]
[1727311801808,16.29,146.95,146.89,4.1854]
[1727311802013,16.29,146.95,146.86,81.7]
[1727311802312,16.29,146.93,146.86,81.7]
[1727311803010,3.4048,146.87,146.86,81.7]
[1727311803213,3.37587928,146.95,146.86,81.7]
[1727311803413,3.4046,146.88,146.86,81.7]
[1727311803617,16.29,146.92,146.86,81.7]
[1727311803814,16.29,146.9,146.86,81.7]
[1727311804109,16.29,146.88,146.82,2.6857]
[1727311804313,16.29,146.88,146.77,81.72]
[1727311804612,16.29,146.88,146.79,1.3757]
[1727311805009,3.4059,146.83,146.79,1.3757]
[1727311805205,16.29,146.86,146.79,1.3757]
[1727311805410,16.29,146.84,146.79,1.3757]
[1727311806413,16.29,146.84,146.77,81.72]
[1727311806718,16.29,146.82,146.77,81.72]
[1727311807114,3.4066,146.8,146.77,81.72]
[1727311807716,16.29,146.82,146.77,85.127]
[1727311808412,16.29,146.8,146.66,53.37134248]
[1727311808614,16.29,146.82,146.72,18.9352]
[1727311809119,3.4071,146.78,146.73,3.4079]
[1727311810019,3.4071,146.78,146.72,18.9352]
[1727311810020,16.29,146.8,146.72,18.9352]
[1727311810209,3.34638885,146.89,146.74,16.29]
[1727311810410,16.29,146.84,146.75,1.3839]
[1727311810614,3.38954394,146.89,146.77,16.29]
[1727311810912,19.67954394,146.89,146.78,1.3094]
[1727311811112,88.65672048,147.02,146.85,16.29]
[1727311811311,88.65672048,147.02,146.9,3.404]
[1727311811312,3.403,146.95,146.9,3.404]
[1727311811513,3.403,146.95,146.86,2.766]
[1727311811514,16.29,146.96,146.88,3.36500919]
[1727311811709,16.29,146.96,146.92,3.4036]
[1727311812215,16.29,146.96,146.87,1.3155]
[1727311812519,26.17,146.97,146.87,1.3155]
[1727311812714,26.17,146.95,146.87,1.3155]
[1727311813417,3.4034,146.94,146.87,1.3155]
[1727311813721,3.4034,146.94,146.88,3.4044]
[1727311813915,26.17,146.95,146.87,1.3155]
[1727311814720,3.4036,146.93,146.87,1.3155]
[1727311814918,26.17,146.95,146.87,1.3155]
[1727311815119,26.17,147.0,146.87,1.3155]
[1727311815120,26.17,146.91,146.87,1.3155]
[1727311815323,26.17,146.91,146.86,83.1421]
[1727311815521,26.17,146.91,146.86,81.76]
[1727311815916,3.4048,146.88,146.86,81.76]
[1727311816126,3.4048,146.88,146.81,3.9679]
[1727311816424,3.4048,146.88,146.83,3.4057]
[1727311817020,3.4044,146.89,146.84,3.4055]
[1727311817220,26.17,146.95,146.83,26.17]
[1727311817732,26.17,146.95,146.85,3.4053]
[1727311818248,3.4041,146.91,146.86,3.405]
[1727311818426,26.17,146.95,146.83,26.17]
[1727311819222,3.4043,146.9,146.85,3.4052]
[1727311819426,26.17,146.95,146.85,3.4052]
[1727311819728,3.4042,146.9,146.85,3.4052]
[1727311820035,3.4042,146.9,146.83,26.17]
[1727311820036,26.17,146.95,146.83,26.17]
[1727311821528,26.17,146.95,146.86,3.405]
[1727311822128,3.4041,146.91,146.86,3.405]
[1727311822327,26.17,146.93,146.81,3.9679]
[1727311822831,26.17,146.93,146.84,3.4053]
[1727311823231,26.17,147.0,146.81,3.9679]
[1727311823433,26.17,146.94,146.83,26.17]
[1727311823629,26.17,146.94,146.83,29.62570207]
[1727311823836,3.404,146.91,146.86,3.405]
[1727311824254,26.17,146.96,146.83,29.62570207]
[1727311824631,26.17,146.96,146.85,26.17]
[1727311825135,3.4036,146.93,146.88,3.4044]
[1727311826538,3.4036,146.93,146.85,111.24309906]
[1727311827536,3.4036,146.93,146.88,3.4044]
[1727311827737,3.4036,146.93,146.85,111.24309906]
[1727311828140,3.4036,146.93,146.89,3.4044]
[1727311828639,3.4036,146.93,146.88,3.4045]
[1727311829340,92.00469165,147.02,146.87,26.17]
[1727311829341,26.17,146.98,146.87,26.17]
[1727311829530,26.17,146.98,146.88,4.0256]
[1727311830034,3.403,146.95,146.9,3.404]
[1727311830642,3.4033,146.94,146.9,3.404]
[1727311830937,26.17,146.98,146.88,2.7375]
[1727311831137,3.4037,146.93,146.88,2.7375]
[1727311831337,3.4037,146.93,146.89,3.4043]
[1727311831934,3.4034,146.94,146.89,3.4043]
[1727311832334,16.35,146.97,146.89,3.4043]
[1727311832534,3.4034,146.94,146.9,3.4041]
[1727311833341,3.4031,146.95,146.9,3.4041]
[1727311833737,16.35,146.97,146.9,3.4041]
[1727311834345,3.4033,146.94,146.9,3.4041]
[1727311834642,16.35,146.97,146.89,3.4043]
[1727311836143,16.35,146.97,146.88,22.492]
[1727311836334,16.35,146.97,146.88,19.0875]
[1727311836532,3.4037,146.92,146.88,19.0875]
[1727311836742,3.4037,146.92,146.88,22.4921]
[1727311837053,3.4042,146.9,146.87,81.72]
[1727311837537,16.35,147.0,146.87,81.72]
[1727311837538,16.35,146.92,146.87,81.72]
[1727311838337,3.4046,146.88,146.87,81.72]
[1727311839050,47.5546,146.99,146.87,81.72]
[1727311839051,16.35,146.94,146.87,81.72]
[1727311839235,16.35,146.92,146.87,81.72]
[1727311839439,3.4046,146.88,146.87,81.72]
[1727311839843,3.4046,146.88,146.84,3.4054]
[1727311840044,16.35,146.92,146.83,3.4057]
[1727311840448,16.35,146.92,146.82,16.35]
[1727311840742,16.35,146.92,146.84,3.4054]
[1727311841350,3.4049,146.87,146.83,3.4057]
[1727311841547,16.35,146.91,146.82,16.35]
[1727311842243,3.4049,146.87,146.83,3.4057]
[1727311842444,3.4049,146.87,146.82,16.35]
[1727311842645,16.35,146.91,146.82,16.35]
[1727311843244,10.28842549,146.94,146.8,99.365]
[1727311843449,10.28842549,146.94,146.8,85.1264]
[1727311843450,16.35,146.88,146.8,85.1264]
[1727311844140,16.35,146.9,146.8,98.07]
[1727311844749,3.405,146.87,146.83,3.4057]
[1727311845341,16.35,146.93,146.84,16.35]
[1727311845546,16.35,146.95,146.86,16.35]
[1727311845747,3.4043,146.9,146.86,16.35]
[1727311845949,16.35,146.95,146.86,16.35]
[1727311847251,16.35,146.95,146.87,3.4048]
[1727311847749,3.4041,146.91,146.87,3.4048]
[1727311848349,16.35,146.95,146.86,16.35]
[1727311849551,16.35,146.99,146.88,16.35]
[1727311849852,16.35,147.01,146.92,16.35]
[1727311850043,88.65672048,147.02,146.76,1.3031]
[1727311850247,88.65672048,147.02,146.86,17.6848]
[1727311850446,88.65672048,147.02,146.87,1.2988]
[1727311850447,16.35,146.98,146.87,1.2988]
[1727311850642,16.35,146.98,146.88,1.3356]
[1727311851152,16.35,146.98,146.88,17.6856]
[1727311851947,3.4034,146.94,146.88,21.0901]
[1727311852450,3.4034,146.94,146.88,17.6856]
[1727311853145,3.4034,146.93,146.88,17.6856]
[1727311853551,16.35,146.96,146.86,1.3348]
[1727311853853,16.35,146.93,146.86,1.3348]
[1727311854553,3.4046,146.89,146.86,1.3348]
[1727311855255,16.35,146.96,146.86,1.3348]
[1727311856348,92.05827288,147.02,146.89,16.35]
[1727311856550,16.35,147.0,146.89,16.35]
[1727311857152,3.4034,146.94,146.89,16.35]
[1727311857451,92.05827288,147.02,146.93,16.35]
[1727311857452,88.65672048,147.02,146.93,16.35]
[1727311857651,88.65672048,147.02,146.95,16.35]
[1727311858458,3.4025,146.98,146.95,16.35]
[1727311859054,3.4018,147.0,146.95,16.35]
[1727311859357,16.35,147.05,146.95,16.35]
[1727311859560,16.35,147.04,146.95,17.6677]
[1727311859960,3.40708019,147.07,146.94,1.3281]
[1727311860148,16.35,146.99,146.9,16.35]
[1727311860760,16.35,146.95,146.86,20.3507]
[1727311860959,16.35,146.97,146.88,16.35]
[1727311861358,16.35,146.95,146.86,20.3507]
[1727311861754,16.35,146.93,146.86,2.6257]
[1727311862058,3.43533635,146.99,146.85,81.72]
[1727311862059,16.35,146.91,146.85,81.72]
[1727311862457,26.15,146.93,146.85,81.72]
[1727311863260,26.15,146.91,146.85,81.72]
[1727311864959,23.89548515,146.98,146.85,81.72]
[1727311865159,3.4051,146.86,146.85,81.72]
[1727311865380,26.15,146.91,146.85,81.72]
[1727311865560,26.15,146.95,146.85,81.72]
[1727311866453,3.4046,146.89,146.85,81.72]
[1727311866658,26.15,146.95,146.85,81.72]
[1727311867158,26.15,146.95,146.85,85.1253]
[1727311867352,26.15,146.95,146.84,26.15]
[1727311867554,3.4041,146.91,146.86,3.4049]
[1727311867865,26.15,146.97,146.86,26.15]
[1727311868062,26.15,146.97,146.89,3.4043]
[1727311868461,88.63683415,147.05,146.89,3.4043]
[1727311868659,26.15,146.99,146.89,3.4043]
[1727311869562,3.4034,146.94,146.89,3.4043]
[1727311870159,3.4034,146.94,146.9,3.4041]
[1727311870459,3.4027,146.97,146.91,26.15]
[1727311870666,3.4027,146.97,146.92,1.364]
[1727311870964,3.4027,146.97,146.92,2.7451]
[1727311871156,3.4024,146.98,146.93,3.4034]
[1727311871359,3.4024,146.98,146.92,2.7451]
[1727311871963,26.15,147.04,146.94,3.403]
[1727311872267,26.15,147.04,146.95,1.2988]
[1727311872459,3.4023,146.98,146.95,1.2988]
[1727311872856,26.15,147.04,146.95,1.2988]
[1727311873058,3.4027,146.96,146.95,1.2988]
[1727311873465,26.15,147.01,146.92,2.7451]
[1727311873661,26.15,146.99,146.92,2.7451]
[1727311873868,26.15,146.99,146.92,1.364]
[1727311874166,3.4037,146.92,146.91,1.2988]
[1727311875161,26.15,146.99,146.91,1.2988]
[1727311876369,3.4035,146.93,146.91,1.2988]
[1727311876758,26.15,146.97,146.9,81.7]
[1727311876964,3.4039,146.91,146.9,81.7]
[1727311877866,26.15,146.99,146.9,81.7]
[1727311878262,26.15,147.01,146.88,1.3332]
[1727311878661,26.15,146.99,146.88,1.3332]
[1727311878862,26.15,146.99,146.89,3.4043]
[1727311879166,3.4036,146.93,146.89,3.4043]
[1727311879558,26.15,146.99,146.88,4.7376]
[1727311879759,3.4036,146.93,146.88,1.3332]
[1727311880166,3.4036,146.93,146.89,3.4042]
[1727311880763,3.4037,146.92,146.89,3.4042]
[1727311880962,26.15,146.99,146.88,1.3332]
[1727311881166,3.4044,146.89,146.88,1.3332]
[1727311881464,26.15,146.96,146.88,1.3332]
[1727311881675,26.15,146.99,146.88,1.3332]
[1727311881966,3.4032,146.94,146.88,1.3332]
[1727311882367,3.4032,146.94,146.9,3.404]
[1727311882757,26.15,147.01,146.89,26.15]
[1727311882963,26.15,147.01,146.89,107.85]
[1727311883168,3.4032,146.95,146.89,107.85]
[1727311883663,26.15,147.01,146.92,3.4036]
[1727311883868,26.15,147.01,146.93,1.3586]
[1727311884260,3.4028,146.96,146.93,1.3586]
[1727311884766,26.15,147.01,146.93,1.3586]
[1727311886270,3.4027,146.97,146.93,4.762]
[1727311887667,92.00688551,147.06,146.93,1.3586]
[1727311887668,3.4024,146.98,146.93,1.3586]
[1727311887971,3.4024,146.98,146.94,2.6661]
[1727311888164,3.4024,146.98,146.94,6.0691]
[1727311888364,3.4026,146.97,146.94,6.0691]
[1727311889369,3.4024,146.98,146.94,6.0691]
[1727311890374,3.4024,146.98,146.94,2.6661]
[1727311891381,3.4024,146.98,146.94,6.0692]
[1727311893375,3.4019,147.0,146.96,3.4027]
[1727311893672,88.62510779,147.06,146.96,26.15]
[1727311893877,3.4013,147.03,146.99,3.4019]
[1727311894067,6.7973,147.14,147.0,2.5954]
[1727311894271,26.15,147.12,147.0,2.5954]
[1727311894474,3.4006,147.06,147.02,3.4014]
[1727311894675,26.15,147.12,147.0,2.5954]
[1727311894976,1.00776817,147.11,147.0,2.5954]
[1727311895179,1.00776817,147.11,147.01,3.4014]
[1727311895374,1.00776817,147.11,147.0,2.5954]
[1727311895575,26.15,147.12,147.01,1.3618]
[1727311895773,1.00782668,147.11,147.02,3.4013]
[1727311895977,1.00782668,147.11,147.01,27.5118]
[1727311896176,3.4004,147.07,147.03,3.4011]
[1727311898167,3.4555828,147.16,147.01,27.5118]
[1727311898168,26.15,147.12,147.01,27.5118]
[1727311898374,26.15,147.09,147.01,1.3618]
[1727311898782,3.4007,147.05,147.01,4.7633]
[1727311899080,26.15,147.12,147.01,1.3618]
[1727311899577,26.15,147.14,147.01,27.5118]
[1727311899977,3.4003,147.07,147.03,3.401]
[1727311900172,26.15,147.14,147.01,27.5118]
[1727311900578,26.15,147.14,147.03,3.401]
[1727311900983,3.3999,147.09,147.01,27.5118]
[1727311901378,26.15,147.14,147.01,27.5118]
[1727311901700,26.15,147.14,147.04,3.4008]
[1727311901701,3.4,147.08,147.04,3.4008]
[1727311903480,3.4003,147.07,147.03,101.3811]
[1727311905291,16.32,147.08,147.03,81.66]
[1727311905488,16.32,147.1,147.03,81.66]
[1727311905992,16.32,147.15,147.03,81.66]
[1727311905993,16.32,147.08,147.03,81.66]
[1727311906183,3.4009,147.04,147.03,81.66]
[1727311907686,26.13,147.05,146.96,2.6999]
[1727311908782,3.4025,146.98,146.96,2.6999]
[1727311908986,26.13,147.03,146.96,1.3526]
[1727311910695,26.13,147.03,146.95,81.64]
[1727311911287,3.4027,146.97,146.95,81.64]
[1727311912192,3.4027,146.96,146.95,81.64]
[1727311914510,3.4032,146.95,146.92,2.7964]
[1727311916403,3.4032,146.94,146.92,2.7964]
[1727311918209,3.4031,146.95,146.92,2.7964]
[1727311918404,26.13,147.0,146.92,2.7964]
[1727311918602,88.61088438,147.07,146.92,2.7964]
[1727311918802,26.13,147.04,146.94,3.4032]
[1727311919199,26.13,147.04,146.92,2.7964]
[1727311919405,26.13,147.04,146.93,3.4033]
[1727311919808,3.4025,146.98,146.92,2.7964]
[1727311920003,3.4025,146.98,146.94,3.4032]
[1727311921105,26.13,147.04,146.92,2.7964]
[1727311921305,88.61088438,147.07,146.92,2.7964]
[1727311921306,26.13,147.01,146.92,2.7964]
[1727311921508,26.13,147.01,146.92,1.3892]
[1727311921711,88.61088438,147.07,146.92,1.3892]
[1727311921911,26.13,147.02,146.92,1.3892]
[1727311923525,3.4032,146.94,146.92,1.3892]
[1727311924201,3.4034,146.93,146.92,1.3892]
[1727311924611,26.13,147.02,146.92,1.3892]
[1727311924813,3.4034,146.94,146.92,1.3892]
[1727311925307,26.13,146.99,146.89,81.68]
[1727311925508,26.13,146.97,146.89,81.68]
[1727311925906,3.4041,146.91,146.89,81.68]
[1727311926315,16.35,146.97,146.89,81.68]
[1727311926615,3.4038,146.92,146.89,81.68]
[1727311927314,16.35,146.95,146.89,81.68]
[1727311927707,3.4041,146.91,146.89,81.68]
[1727311927907,6.8024,147.03,146.9,16.35]
[1727311928107,1.00810029,147.02,146.92,16.35]
[1727311928309,1.00810029,147.01,146.94,19.7531]
[1727311928515,16.35,147.02,146.94,16.35]
[1727311929012,3.4022,146.99,146.95,3.4028]
[1727311929212,16.35,147.02,146.95,3.4028]
[1727311929607,16.35,147.02,146.94,16.35]
[1727311930415,3.4024,146.98,146.94,3.4032]
[1727311931117,3.4019,147.0,146.95,3.4028]
[1727311931313,3.4019,147.0,146.95,26.15]
[1727311931913,3.4019,147.0,146.95,27.4923]
[1727311932315,114.76088438,147.07,146.95,27.4923]
[1727311932518,1.00850271,147.06,146.95,27.4923]
[1727311932718,1.00850271,147.06,146.96,3.4027]
[1727311932915,3.4019,147.0,146.95,27.4923]
[1727311933712,114.76088438,147.07,146.95,27.4923]
[1727311934219,26.15,147.04,146.95,1.3423]
[1727311934609,26.15,147.02,146.93,1.4194]
[1727311935412,3.403,146.95,146.93,1.4194]
[1727311935719,26.15,147.0,146.91,81.68]
[1727311935914,88.61088438,147.07,146.91,81.68]
[1727311935915,26.15,146.98,146.91,81.68]
[1727311936118,109.06088438,147.07,146.91,81.68]
[1727311936419,3.4037,146.92,146.91,81.68]
[1727311937717,26.15,146.94,146.87,1.3998]
[1727311937917,26.15,146.94,146.86,1.3803]
[1727311938520,26.15,146.92,146.83,1.3998]
[1727311939618,3.4055,146.85,146.83,1.3998]
[1727311939817,26.15,146.92,146.83,1.3998]
[1727311940524,26.15,146.89,146.82,81.7]
[1727311941628,3.4058,146.83,146.82,81.7]
[1727311942131,3.43699216,146.91,146.74,2.8085]
[1727311942132,3.4069,146.79,146.74,2.8085]
[1727311942722,3.4064,146.81,146.74,2.8085]
[1727311943122,3.4064,146.81,146.76,3.4072]
[1727311943318,26.15,146.86,146.74,2.8085]
[1727311943624,26.15,146.84,146.74,2.8085]
[1727311943831,3.4069,146.79,146.74,6.2163]
[1727311944022,26.15,146.84,146.74,2.8085]
[1727311944218,26.15,146.82,146.74,2.8085]
[1727311944724,26.15,146.77,146.65,26.15]
[1727311944929,26.15,146.77,146.65,33.6833]
[1727311944930,3.4087,146.71,146.65,33.6833]
[1727311945120,26.15,146.77,146.65,33.6833]
[1727311945324,26.15,146.77,146.65,30.2736]
[1727311945625,26.15,146.77,146.66,3.4097]
[1727311946227,26.15,146.75,146.61,3.38521587]
[1727311946533,26.15,146.75,146.65,1.3418]
[1727311946724,3.4093,146.68,146.65,1.3418]
[1727311947227,26.15,146.75,146.65,1.3418]
[1727311947428,3.4091,146.69,146.65,1.3418]
[1727311947733,26.15,146.77,146.65,1.3418]
[1727311947931,26.15,146.74,146.65,1.3418]
[1727311949325,3.4091,146.69,146.65,1.3418]
[1727311949828,3.4094,146.68,146.65,1.3418]
[1727311950024,26.15,146.74,146.65,1.3418]
[1727311951024,3.4093,146.68,146.65,1.3418]
[1727311951427,26.15,146.74,146.62,1.4244]
[1727311952036,26.15,146.74,146.63,26.15]
[1727311952236,3.4091,146.69,146.64,3.41]
[1727311952931,3.4093,146.68,146.63,30.8842]
[1727311953339,26.15,146.74,146.63,27.4738]
[1727311953938,3.409,146.69,146.65,3.4099]
[1727311954138,3.409,146.69,146.63,27.4738]
[1727311954539,3.4093,146.68,146.63,27.4738]
[1727311954937,3.4093,146.68,146.63,30.884]
[1727311955335,26.15,146.74,146.63,1.3238]
[1727311955840,3.4096,146.67,146.63,1.3238]
[1727311956135,26.15,146.74,146.63,1.3238]
[1727311956944,3.4097,146.67,146.63,1.3238]
[1727311957140,26.15,146.74,146.63,1.3238]
[1727311958043,3.4099,146.66,146.63,1.3238]
[1727311958645,3.4098,146.66,146.63,1.3238]
[1727311959542,3.41,146.65,146.63,1.3238]
[1727311959743,26.15,146.72,146.63,1.3238]
[1727311960055,3.4097,146.66,146.63,1.3238]
[1727311960346,26.15,146.72,146.63,1.3238]
[1727311961741,26.15,146.73,146.63,4.7342]
[1727311962438,16.37,146.71,146.63,4.7342]
[1727311962843,16.37,146.71,146.63,1.3238]
[1727311963146,16.37,146.71,146.62,17.7944]
[1727311963343,3.41,146.65,146.62,17.7944]
[1727311963546,16.37,146.7,146.62,1.4244]
[1727311963740,16.37,146.7,146.61,1.4163]
[1727311964944,3.33514425,146.79,146.63,16.37]
[1727311965143,16.37,146.74,146.65,3.4099]
[1727311965646,16.37,146.74,146.63,16.37]
[1727311965647,3.4091,146.69,146.64,3.41]
[1727311965846,16.37,146.71,146.63,16.37]
[1727311966349,3.4096,146.67,146.63,19.7802]
[1727311966749,3.4096,146.67,146.63,16.37]
[1727311967148,16.37,146.71,146.63,16.37]
[1727311967352,3.4099,146.66,146.63,16.37]
[1727311967550,16.37,146.71,146.63,16.37]
[1727311967745,3.33854781,146.77,146.61,1.4163]
[1727311967746,16.37,146.69,146.61,1.4163]
[1727311967946,3.4102,146.65,146.61,1.4163]
[1727311968146,3.4102,146.65,146.6,22.4757]
[1727311968346,3.4102,146.65,146.6,19.0648]
[1727311969151,3.4102,146.65,146.61,3.4107]
[1727311970549,16.37,146.69,146.6,19.0648]
[1727311970550,3.4098,146.66,146.62,19.7806]
[1727311970751,3.4098,146.66,146.62,16.37]
[1727311970949,16.37,146.71,146.62,16.37]
[1727311971149,3.4094,146.68,146.64,3.41]
[1727311975057,3.4095,146.67,146.63,3.4103]
[1727311978150,3.4095,146.67,146.64,3.4101]